bitfinex/quotes_SOLUSD_20241007
["timestamp","ask_amount","ask_price","bid_price","bid_amount"]
[1728338581648,8.27171485,146.81,146.77,1.68270922]
[1728338581849,24.41201485,146.82,146.78,12.45478354]
[1728338582031,6.8112,146.82,146.78,13.81727914]
[1728338582234,6.8112,146.82,146.78,12.45478354]
[1728338582730,6.8112,146.82,146.78,13.81714511]
[1728338582929,22.30844062,146.86,146.77,0.3202115]
[1728338582930,6.8127,146.79,146.77,0.3202115]
[1728338583235,28.27301485,146.78,146.77,0.3202115]
[1728338585260,1.46011485,146.82,146.77,0.3202115]
[1728338585562,6.8118,146.81,146.77,0.3202115]
[1728338585858,1.46011485,146.8,146.77,0.3202115]
[1728338586255,8.27211485,146.8,146.77,0.3202115]
[1728338586564,6.8129,146.78,146.77,0.3202115]
[1728338587563,26.8129,146.78,146.77,0.3202115]
[1728338589963,26.93839,146.78,146.77,0.3202115]
[1728338590144,28.39850485,146.78,146.77,0.3202115]
[1728338592655,52.30087885,146.78,146.77,0.3202115]
[1728338593241,8.27301485,146.78,146.77,0.3202115]
[1728338593436,1.46011485,146.78,146.77,0.3202115]
[1728338593655,6.8121,146.8,146.77,0.3202115]
[1728338594244,8.27251485,146.79,146.77,0.3202115]
[1728338594649,6.8124,146.79,146.77,0.3202115]
[1728338596457,6.8129,146.78,146.77,0.3202115]
[1728338598559,26.8129,146.78,146.77,0.3202115]
[1728338611769,20.0,146.78,146.77,0.3202115]
[1728338612647,26.8129,146.78,146.77,0.3202115]
[1728338613244,20.0,146.72,146.71,0.1]
[1728338617652,26.8157,146.72,146.71,0.1]
[1728338618562,26.94119,146.72,146.71,0.1]
[1728338618974,26.8157,146.72,146.71,0.1]
[1728338619962,50.843564,146.72,146.71,0.1]
[1728338620273,6.8172,146.69,146.65,3.5111039]
[1728338620581,20.0,146.68,146.65,3.5111039]
[1728338621456,23.902374,146.74,146.66,1.36357484]
[1728338621661,6.8171,146.69,146.65,3.5111039]
[1728338621957,21.46011485,146.68,146.65,3.5111039]
[1728338622156,28.27761485,146.68,146.65,3.5111039]
[1728338622357,28.27761485,146.68,146.63,6.6317]
[1728338622358,28.27761485,146.68,146.64,3.5111039]
[1728338622681,6.818,146.67,146.64,3.5111039]
[1728338623275,6.818,146.67,146.65,3.5111039]
[1728338624277,0.12549,146.69,146.65,3.5111039]
[1728338624462,6.8177,146.68,146.64,3.5111039]
[1728338624663,1.46011485,146.67,146.64,3.5111039]
[1728338625071,20.0,146.65,146.63,3.5111039]
[1728338625261,28.27951485,146.64,146.63,3.5111039]
[1728338625572,50.847664,146.63,146.62,4.3424746]
[1728338626360,50.847664,146.63,146.62,0.8313707]
[1728338627659,26.94529,146.63,146.62,0.8313707]
[1728338627863,20.0,146.63,146.62,0.8313707]
[1728338631065,20.0,146.63,146.62,2.19532863]
[1728338631260,20.0,146.63,146.62,0.8313707]
[1728338633878,20.0,146.63,146.62,4.3424746]
[1728338635291,26.8198,146.63,146.62,0.8313707]
[1728338635462,20.0,146.63,146.62,0.8313707]
[1728338636571,20.0,146.63,146.62,4.38645995]
[1728338636987,20.0,146.63,146.62,0.8313707]
[1728338637290,20.0,146.63,146.62,4.38650744]
[1728338638984,26.8198,146.63,146.62,4.38650744]
[1728338640686,20.0,146.63,146.62,4.38650744]
[1728338642290,26.8198,146.63,146.62,4.38650744]
[1728338642475,26.8198,146.63,146.62,0.8313707]
[1728338643679,20.0,146.63,146.62,0.8313707]
[1728338644669,1.46011485,146.66,146.62,0.8313707]
[1728338644978,23.24020637,146.69,146.62,0.8313707]
[1728338644979,21.46011485,146.68,146.62,0.8313707]
[1728338645185,6.8188,146.66,146.62,0.8313707]
[1728338645380,20.0,146.65,146.62,0.8313707]
[1728338645562,6.8197,146.64,146.62,0.8313707]
[1728338646694,26.8198,146.63,146.62,0.8313707]
[1728338649595,27.07078,146.63,146.62,0.8313707]
[1728338652200,27.07128,146.62,146.61,0.1]
[1728338652398,6.822,146.59,146.55,3.55513674]
[1728338652883,20.0,146.56,146.55,3.55513674]
[1728338653072,26.8231,146.56,146.53,3.55513674]
[1728338653278,26.8231,146.56,146.51,0.1]
[1728338653489,20.0,146.54,146.51,0.1]
[1728338653781,26.8231,146.56,146.51,0.1]
[1728338655200,20.0,146.54,146.51,0.1]
[1728338655579,20.0,146.54,146.51,1.46485362]
[1728338655779,6.8233,146.56,146.51,1.46485362]
[1728338655780,20.0,146.55,146.51,1.46485362]
[1728338655999,1.46011485,146.59,146.51,1.46485362]
[1728338656202,1.46011485,146.61,146.51,1.46485362]
[1728338656804,1.46011485,146.61,146.52,23.776884]
[1728338657010,20.0,146.58,146.53,1.36451592]
[1728338657598,20.0,146.59,146.52,23.776884]
[1728338657804,20.0,146.59,146.53,6.94969]
[1728338658011,26.8218,146.59,146.52,30.601684]
[1728338658390,1.46011485,146.58,146.52,23.776884]
[1728338658705,20.0,146.57,146.52,23.776884]
[1728338660202,21.46011485,146.62,146.53,1.36452939]
[1728338660400,20.0,146.58,146.53,1.36452939]
[1728338661003,20.0,146.59,146.53,6.8242]
[1728338661512,6.8222,146.58,146.51,23.9883]
[1728338661692,20.0,146.57,146.51,23.9883]
[1728338662106,20.0,146.57,146.52,1.36455607]
[1728338662294,1.46011485,146.61,146.52,6.8248]
[1728338662295,20.0,146.58,146.52,6.8248]
[1728338662896,20.0,146.58,146.53,1.3644531]
[1728338663207,20.0,146.59,146.52,0.12549]
[1728338663385,20.0,146.59,146.52,23.902374]
[1728338663711,20.0,146.57,146.52,23.902374]
[1728338665292,1.46011485,146.62,146.52,23.902374]
[1728338665512,6.8218,146.59,146.52,30.727274]
[1728338665721,20.0,146.58,146.52,30.727274]
[1728338667211,20.0,146.58,146.51,23.9884]
[1728338667212,6.8222,146.58,146.51,23.9884]
[1728338667395,20.0,146.57,146.51,23.9884]
[1728338667593,1.58560485,146.61,146.51,17.1633]
[1728338667795,20.0,146.56,146.51,17.1633]
[1728338667997,20.0,146.56,146.52,1.36461899]
[1728338668309,20.0,146.57,146.52,1.36461899]
[1728338668697,6.8218,146.59,146.52,8.18931899]
[1728338668896,1.46011485,146.61,146.53,23.776884]
[1728338669096,6.8214,146.6,146.54,1.36438558]
[1728338669297,20.0,146.59,146.54,1.36438558]
[1728338670801,20.0,146.59,146.54,16.58848558]
[1728338671294,20.0,146.6,146.54,23.41238558]
[1728338671614,20.0,146.6,146.54,22.048]
[1728338672019,20.0,146.6,146.55,1.36431379]
[1728338672724,1.46011485,146.65,146.56,6.2363]
[1728338673018,8.27911485,146.65,146.58,6.822]
[1728338673207,8.27911485,146.65,146.59,1.36397696]
[1728338674407,20.0,146.64,146.59,1.36397696]
[1728338676019,20.0,146.64,146.59,8.18557696]
[1728338676341,20.0,146.62,146.57,17.0561]
[1728338677397,28.28101485,146.61,146.56,6.2363]
[1728338678001,26.8209,146.61,146.56,6.2363]
[1728338678201,26.8209,146.61,146.57,1.36427945]
[1728338679017,6.8204,146.62,146.57,1.36427945]
[1728338679216,20.0,146.61,146.57,1.36427945]
[1728338682244,20.0,146.61,146.56,6.2363]
[1728338682936,20.0,146.61,146.57,1.36424728]
[1728338685729,20.0,146.61,146.56,6.2363]
[1728338686124,20.0,146.61,146.57,1.36425156]
[1728338686528,26.821,146.61,146.56,6.2363]
[1728338689312,20.0,146.61,146.57,1.36425434]
[1728338689514,20.0,146.61,146.56,6.2363]
[1728338690336,21.46011485,146.64,146.56,6.2363]
[1728338690538,20.0,146.6,146.56,6.2363]
[1728338691037,26.8215,146.6,146.56,6.2363]
[1728338691341,20.0,146.6,146.56,6.2363]
[1728338692436,20.0,146.6,146.57,1.36423608]
[1728338693214,21.46011485,146.64,146.57,1.36423608]
[1728338693419,20.0,146.61,146.57,1.36423608]
[1728338694017,20.0,146.61,146.56,6.2363]
[1728338694431,20.0,146.61,146.57,1.3642138]
[1728338694624,20.0,146.61,146.56,6.2363]
[1728338695638,20.0,146.58,146.56,6.2363]
[1728338696033,1.46011485,146.63,146.57,1.3643404]
[1728338696222,20.0,146.63,146.57,1.3643404]
[1728338696541,26.8202,146.63,146.57,17.0562]
[1728338696845,21.46011485,146.64,146.56,6.2363]
[1728338697021,26.8211,146.61,146.56,6.2363]
[1728338697843,20.0,146.59,146.56,6.2363]
[1728338698032,6.822,146.59,146.54,15.2241]
[1728338698360,20.0,146.58,146.54,15.2241]
[1728338698831,20.0,146.58,146.55,1.36442489]
[1728338699229,20.0,146.58,146.54,15.2241]
[1728338699950,20.0,146.58,146.55,1.36440663]
[1728338700242,1.46011485,146.62,146.55,1.36440683]
[1728338700421,20.0,146.61,146.55,18.42300683]
[1728338700625,20.0,146.57,146.54,15.2241]
[1728338701535,6.8213,146.6,146.54,15.2241]
[1728338701735,20.0,146.59,146.54,15.2241]
[1728338701947,20.0,146.59,146.55,6.8235]
[1728338702145,1.46011485,146.64,146.57,23.776884]
[1728338702448,34.0849,146.7,146.55,12.52446371]
[1728338702449,1.46011485,146.63,146.56,37.187984]
[1728338702651,6.8213,146.6,146.56,6.5881]
[1728338703546,6.8209,146.61,146.56,6.5881]
[1728338703846,20.0,146.6,146.56,6.5881]
[1728338707658,21.46011485,146.64,146.56,6.5881]
[1728338707826,6.8218,146.59,146.56,6.5881]
[1728338708351,20.0,146.55,146.51,23.0]
[1728338708544,20.0,146.55,146.52,31.36468802]
[1728338708742,20.0,146.55,146.52,38.18938802]
[1728338708940,21.46011485,146.58,146.52,55.25148802]
[1728338709155,20.0,146.58,146.52,55.25148802]
[1728338709349,6.8216,146.6,146.53,30.726674]
[1728338709552,20.0,146.59,146.53,30.726674]
[1728338709755,20.0,146.59,146.52,17.0621]
[1728338709936,20.0,146.56,146.52,23.776884]
[1728338710138,26.8231,146.56,146.51,23.0]
[1728338710332,20.0,146.54,146.51,23.0]
[1728338710733,26.824,146.54,146.51,0.1]
[1728338710952,20.0,146.54,146.51,0.1]
[1728338711152,20.0,146.52,146.51,0.1]
[1728338711456,26.825,146.52,146.51,0.1]
[1728338711757,20.0,146.52,146.51,0.1]
[1728338712339,28.28511485,146.52,146.51,0.1]
[1728338712659,26.825,146.52,146.51,0.1]
[1728338712868,20.0,146.52,146.51,0.1]
[1728338713733,26.825,146.52,146.51,0.1]
[1728338716159,26.825,146.52,146.47,4.38650744]
[1728338716160,20.0,146.48,146.47,4.38650744]
[1728338716943,26.8268,146.48,146.47,4.38650744]
[1728338717141,26.8268,146.48,146.47,0.8313707]
[1728338717765,26.95229,146.48,146.47,0.8313707]
[1728338718061,26.8268,146.48,146.47,0.8313707]
[1728338718439,20.0,146.48,146.47,0.8313707]
[1728338719561,20.0,146.48,146.47,2.19678926]
[1728338719735,20.0,146.48,146.47,0.8313707]
[1728338724271,20.0,146.48,146.47,2.19667728]
[1728338724644,20.0,146.48,146.47,0.8313707]
[1728338725480,26.8268,146.48,146.47,0.8313707]
[1728338726880,26.95229,146.48,146.47,0.8313707]
[1728338728274,26.8268,146.48,146.47,0.8313707]
[1728338728844,6.8256,146.51,146.47,0.8313707]
[1728338729050,1.46011485,146.51,146.47,0.8313707]
[1728338729262,8.28561485,146.51,146.47,0.8313707]
[1728338730253,20.0,146.5,146.47,0.8313707]
[1728338730459,1.46011485,146.51,146.47,0.8313707]
[1728338730658,20.0,146.49,146.47,0.8313707]
[1728338731066,26.8264,146.49,146.47,0.8313707]
[1728338731266,20.0,146.51,146.47,0.8313707]
[1728338731463,20.0,146.48,146.47,0.8313707]
[1728338734484,26.8268,146.48,146.47,0.8313707]
[1728338735775,20.0,146.48,146.47,0.8313707]
[1728338736180,26.8268,146.48,146.47,0.8313707]
[1728338739564,20.0,146.48,146.47,0.8313707]
[1728338740482,20.0,146.48,146.47,2.19675003]
[1728338740788,20.0,146.48,146.47,0.8313707]
[1728338741083,1.46011485,146.51,146.47,2.19663349]
[1728338741260,6.8251,146.52,146.47,0.8313707]
[1728338741472,6.8251,146.52,146.48,1.36514474]
[1728338741767,8.28431485,146.54,146.48,1.36514474]
[1728338741969,8.28321485,146.56,146.49,23.902374]
[1728338742158,6.8236,146.55,146.49,23.902374]
[1728338743285,20.0,146.54,146.49,23.902374]
[1728338743587,6.8232,146.56,146.5,1.36481148]
[1728338743774,20.0,146.55,146.5,1.36481148]
[1728338744690,20.0,146.56,146.5,1.36481148]
[1728338744854,6.8231,146.56,146.5,1.36481148]
[1728338745065,20.0,146.55,146.5,1.36481148]
[1728338745568,6.8223,146.58,146.51,46.215274]
[1728338745867,8.28281485,146.57,146.51,39.264484]
[1728338746071,6.8227,146.57,146.52,1.36464897]
[1728338746280,18.51251485,146.61,146.51,46.089784]
[1728338746467,18.51251485,146.61,146.51,39.264484]
[1728338746668,6.8228,146.57,146.52,1.36459735]
[1728338746858,20.0,146.56,146.52,1.36459735]
[1728338748562,20.0,146.56,146.51,39.264484]
[1728338749689,20.0,146.56,146.52,1.36465522]
[1728338749873,20.0,146.6,146.51,46.089784]
[1728338750381,1.46011485,146.59,146.51,46.089784]
[1728338750564,20.0,146.58,146.52,1.36453307]
[1728338750765,26.8222,146.58,146.51,63.153084]
[1728338751878,26.8222,146.58,146.52,1.36453454]
[1728338752283,1.46011485,146.57,146.52,1.36453454]
[1728338752497,20.0,146.53,146.47,10.69460744]
[1728338752788,26.8246,146.53,146.48,30.0]
[1728338753584,6.8239,146.55,146.48,30.0]
[1728338753797,20.0,146.53,146.49,23.776884]
[1728338753978,26.8246,146.53,146.48,30.0]
[1728338754185,26.8246,146.53,146.47,10.69460744]
[1728338754682,26.8246,146.53,146.48,1.36497313]
[1728338756790,26.8246,146.53,146.47,10.69460744]
[1728338756990,6.8251,146.52,146.47,10.69460744]
[1728338757174,26.8258,146.51,146.47,10.69460744]
[1728338757488,20.0,146.49,146.47,10.69460744]
[1728338757671,20.0,146.49,146.47,4.38650744]
[1728338757987,6.8268,146.48,146.47,4.38650744]
[1728338758198,20.0,146.48,146.47,4.38650744]
[1728338759090,26.8268,146.48,146.47,4.38650744]
[1728338761099,26.8268,146.48,146.47,0.8313707]
[1728338761699,8.28431485,146.54,146.47,31.4354547]
[1728338761901,6.63888218,146.53,146.49,23.776884]
[1728338762080,15.08533808,146.59,146.51,24.027864]
[1728338762264,6.63710412,146.58,146.53,23.902374]
[1728338762466,6.63710412,146.57,146.53,23.902374]
[1728338762666,6.63710412,146.56,146.54,1.36445188]
[1728338762864,6.63710412,146.55,146.54,1.36445188]
[1728338763170,6.63710412,146.55,146.54,25.14133588]
[1728338763380,6.63710412,146.55,146.54,25.26682588]
[1728338763592,6.63710412,146.55,146.54,25.39231588]
[1728338763892,6.63710412,146.55,146.51,23.902374]
[1728338764070,6.8222,146.58,146.51,23.902374]
[1728338764271,6.63653034,146.57,146.53,23.776884]
[1728338764583,6.63653034,146.56,146.55,23.776884]
[1728338765290,26.63653034,146.56,146.55,23.776884]
[1728338768789,20.0,146.55,146.52,0.12549]
[1728338769370,20.0,146.56,146.51,23.776884]
[1728338769571,6.63646394,146.55,146.51,23.776884]
[1728338769772,20.0,146.56,146.51,23.776884]
[1728338770078,6.63646617,146.55,146.51,23.776884]
[1728338770282,6.8227,146.57,146.52,1.36460138]
[1728338770587,20.0,146.55,146.53,23.776884]
[1728338771189,20.0,146.56,146.53,23.776884]
[1728338771391,6.63585885,146.55,146.53,23.776884]
[1728338771693,20.0,146.56,146.53,23.776884]
[1728338771896,6.63586791,146.55,146.53,23.776884]
[1728338772200,20.0,146.56,146.53,23.776884]
[1728338772500,6.63572181,146.55,146.53,23.776884]
[1728338772675,20.0,146.56,146.53,23.776884]
[1728338772883,6.63573743,146.55,146.53,23.776884]
[1728338773089,20.0,146.56,146.53,23.776884]
[1728338773386,6.63562446,146.55,146.53,23.776884]
[1728338773592,20.0,146.56,146.53,23.776884]
[1728338773904,6.6357456,146.55,146.53,23.776884]
[1728338774110,20.0,146.56,146.53,23.776884]
[1728338774515,6.63581603,146.55,146.54,1.36454612]
[1728338774806,6.63581603,146.55,146.53,23.776884]
[1728338774989,20.0,146.56,146.53,23.776884]
[1728338775303,6.63574304,146.55,146.54,32.21641052]
[1728338775884,6.63574304,146.55,146.54,48.22581052]
[1728338776083,6.8206,146.62,146.56,0.12549]
[1728338776308,6.55834318,146.61,146.56,0.12549]
[1728338776503,6.8206,146.62,146.56,0.12549]
[1728338776504,6.55834318,146.6,146.56,0.12549]
[1728338776811,6.55834318,146.59,146.55,23.776884]
[1728338777101,20.0,146.57,146.52,0.12549]
[1728338777292,6.55834318,146.56,146.52,30.0]
[1728338777491,20.0,146.57,146.53,1.36449517]
[1728338777905,6.52848982,146.56,146.53,1.36449517]
[1728338778106,20.0,146.57,146.53,1.36449517]
[1728338778314,6.52849941,146.56,146.53,1.36449517]
[1728338778612,20.0,146.57,146.54,1.36449318]
[1728338778778,6.52858589,146.56,146.54,1.36449318]
[1728338778985,20.0,146.57,146.54,1.36449318]
[1728338779180,6.52857714,146.56,146.55,23.776884]
[1728338780608,6.52857714,146.56,146.55,24.027864]
[1728338781019,28.28031485,146.63,146.56,0.12549]
[1728338781323,6.8197,146.64,146.58,23.776884]
[1728338781617,6.52803057,146.63,146.59,1.36394353]
[1728338781913,6.52803057,146.62,146.59,1.36394353]
[1728338782116,6.52803057,146.61,146.59,1.36394353]
[1728338782290,6.52803057,146.6,146.59,1.36394353]
[1728338782487,6.52803057,146.6,146.59,25.26631753]
[1728338783107,20.0,146.64,146.6,23.776884]
[1728338783412,20.0,146.64,146.61,1.36382176]
[1728338784003,26.8194,146.64,146.61,1.36382176]
[1728338785818,26.8194,146.64,146.6,23.776884]
[1728338786114,20.0,146.64,146.57,6.125]
[1728338786296,20.0,146.59,146.57,6.125]
[1728338786794,6.8204,146.62,146.57,6.125]
[1728338786994,20.0,146.61,146.57,6.125]
[1728338787413,20.0,146.61,146.58,23.776884]
[1728338787801,26.8208,146.61,146.58,23.776884]
[1728338788703,26.8208,146.61,146.59,1.36408253]
[1728338788911,6.8205,146.62,146.59,1.36408253]
[1728338789204,6.8205,146.62,146.58,23.776884]
[1728338789205,20.0,146.61,146.58,23.776884]
[1728338790117,20.0,146.63,146.59,1.48953095]
[1728338790306,36.14603143,146.68,146.61,0.12549]
[1728338790307,6.8188,146.66,146.61,0.12549]
[1728338790492,6.8188,146.66,146.62,23.776884]
[1728338790689,6.8188,146.66,146.63,1.36368031]
[1728338790912,18.02041485,146.68,146.62,23.776884]
[1728338791118,6.8189,146.65,146.63,1.36367204]
[1728338791416,6.8181,146.67,146.63,1.36367204]
[1728338792603,20.0,146.66,146.63,1.36367204]
[1728338793913,36.89072803,146.71,146.61,0.12549]
[1728338793914,20.0,146.7,146.61,23.902374]
[1728338794225,20.0,146.65,146.61,23.902374]
[1728338794811,20.0,146.65,146.61,0.25098]
[1728338797606,6.819,146.65,146.61,0.25098]
[1728338797807,20.0,146.64,146.61,0.25098]
[1728338801221,20.0,146.67,146.62,23.776884]
[1728338801425,20.0,146.67,146.63,0.25098]
[1728338801599,26.8181,146.67,146.63,0.25098]
[1728338801800,20.0,146.67,146.63,0.25098]
[1728338802026,20.0,146.68,146.65,0.12549]
[1728338802322,20.0,146.68,146.66,23.776884]
[1728338802527,20.0,146.68,146.67,1.36341141]
[1728338803022,6.8167,146.7,146.67,1.36341141]
[1728338803225,6.816,146.72,146.68,25.26554664]
[1728338803525,6.816,146.72,146.68,23.902374]
[1728338805525,20.0,146.71,146.68,23.902374]
[1728338806804,20.0,146.75,146.63,23.3056]
[1728338807005,20.0,146.75,146.62,16.159]
[1728338807006,6.8189,146.65,146.64,30.0]
[1728338807212,26.8189,146.65,146.64,30.0]
[1728338808218,20.0,146.64,146.59,6.6072]
[1728338808527,20.0,146.64,146.6,30.0]
[1728338809435,20.0,146.64,146.61,23.902374]
[1728338809612,20.0,146.64,146.61,0.12549]
[1728338814114,20.0,146.64,146.61,1.36376271]
[1728338814343,6.8203,146.63,146.6,23.776884]
[1728338814631,6.8203,146.63,146.59,6.73269]
[1728338814933,6.8203,146.63,146.6,0.12549]
[1728338815429,6.8197,146.64,146.6,1.36381311]
[1728338816239,6.8198,146.63,146.61,23.776884]
[1728338817029,6.8198,146.63,146.62,1.36383289]
[1728338818337,6.8196,146.64,146.62,1.36383289]
[1728338818838,20.0,146.66,146.62,1.36383289]
[1728338819045,20.0,146.64,146.63,23.776884]
[1728338820243,20.0,146.64,146.61,0.25098]
[1728338820430,20.0,146.64,146.61,0.12549]
[1728338820827,20.0,146.64,146.61,0.25098]
[1728338821524,21.46011485,146.69,146.63,0.12549]
[1728338821724,20.0,146.66,146.64,23.776884]
[1728338821924,16.6086,146.7,146.65,1.39342878]
[1728338822674,6.8179,146.68,146.65,0.12549]
[1728338822851,16.6086,146.7,146.63,23.902374]
[1728338823031,20.0,146.69,146.58,22.9688]
[1728338823224,6.8207,146.62,146.58,22.9688]
[1728338823444,6.8199,146.63,146.58,6.5392]
[1728338823639,20.0,146.63,146.58,6.5392]
[1728338824221,21.46011485,146.66,146.58,6.5392]
[1728338824522,20.0,146.59,146.55,16.1192]
[1728338824728,26.822,146.59,146.54,6.5392]
[1728338824927,6.8223,146.58,146.52,16.1192]
[1728338825228,20.0,146.57,146.52,16.1192]
[1728338825734,20.0,146.58,146.52,16.1192]
[1728338826325,20.0,146.57,146.52,16.1192]
[1728338827227,26.8227,146.57,146.5,6.5392]
[1728338827549,26.8227,146.57,146.51,24.027864]
[1728338827756,26.8227,146.57,146.51,0.25098]
[1728338827952,26.8236,146.55,146.5,6.5392]
[1728338828248,20.0,146.55,146.5,13.365]
[1728338828650,20.0,146.57,146.5,13.365]
[1728338829246,20.0,146.57,146.51,24.027864]
[1728338830029,16.1173,146.59,146.53,24.027864]
[1728338830030,20.0,146.59,146.53,24.027864]
[1728338830331,6.8214,146.6,146.55,0.25098]
[1728338831446,20.0,146.59,146.55,1.61520484]
[1728338831826,20.0,146.62,146.57,0.25098]
[1728338832031,6.8199,146.63,146.59,0.12549]
[1728338832241,6.8199,146.63,146.6,23.776884]
[1728338832441,6.8203,146.62,146.59,0.12549]
[1728338832945,6.82,146.63,146.59,0.12549]
[1728338833339,20.0,146.62,146.59,0.12549]
[1728338834160,20.0,146.62,146.59,1.4894886]
[1728338834465,26.8185,146.66,146.6,23.902374]
[1728338834753,16.0686,146.67,146.62,23.902374]
[1728338834754,22.8867,146.67,146.62,23.902374]
[1728338834966,22.8867,146.67,146.63,1.36361554]
[1728338835257,1.46011485,146.66,146.56,23.622]
[1728338835560,6.8197,146.64,146.57,25.39164871]
[1728338836347,20.0,146.63,146.57,25.39164871]
[1728338836536,20.0,146.63,146.59,24.027864]
[1728338837757,20.0,146.66,146.6,1.36388481]
[1728338837963,20.0,146.66,146.61,24.027864]
[1728338837964,26.8186,146.66,146.61,24.027864]
[1728338838140,20.0,146.64,146.61,24.027864]
[1728338838651,20.0,146.64,146.61,23.902374]
[1728338838956,20.0,146.61,146.58,30.0]
[1728338840039,6.8224,146.58,146.52,6.6091]
[1728338840351,20.0,146.58,146.54,30.0]
[1728338841135,20.0,146.58,146.53,30.0]
[1728338841643,20.0,146.58,146.54,24.027864]
[1728338842366,20.0,146.58,146.53,24.027864]
[1728338842672,20.0,146.58,146.54,0.12549]
[1728338843162,6.8218,146.59,146.52,6.6091]
[1728338843163,20.0,146.56,146.52,6.6091]
[1728338843338,20.0,146.55,146.49,3.56390776]
[1728338843543,26.8237,146.55,146.5,30.0]
[1728338843866,6.8232,146.56,146.5,30.0]
[1728338844239,20.0,146.55,146.5,30.0]
[1728338844541,1.46011485,146.6,146.51,1.36466195]
[1728338844854,22.9865,146.61,146.53,6.8244]
[1728338845054,22.9865,146.61,146.54,1.36415934]
[1728338845368,6.8204,146.62,146.55,25.39200004]
[1728338845741,6.8204,146.62,146.55,24.027864]
[1728338846845,20.0,146.61,146.55,24.027864]
[1728338847742,26.8209,146.61,146.55,24.027864]
[1728338848147,20.0,146.59,146.55,24.027864]
[1728338848447,26.8218,146.59,146.55,24.027864]
[1728338849765,6.8222,146.58,146.55,23.776884]
[1728338850067,20.0,146.56,146.55,23.776884]
[1728338850257,20.0,146.56,146.51,23.776884]
[1728338850444,26.8235,146.56,146.52,30.0]
[1728338850845,26.8235,146.56,146.51,23.776884]
[1728338851039,21.46011485,146.58,146.5,6.0164]
[1728338851264,20.0,146.53,146.5,6.0164]
[1728338851469,20.0,146.53,146.51,1.36479629]
[1728338851845,20.0,146.54,146.51,1.36479629]
[1728338852703,20.0,146.54,146.52,23.776884]
[1728338852851,20.0,146.54,146.53,25.26712455]
[1728338854046,6.823,146.57,146.53,25.26712455]
[1728338854246,20.0,146.56,146.54,23.776884]
[1728338854453,20.0,146.56,146.55,1.36454676]
[1728338854653,20.0,146.56,146.54,1.36454676]
[1728338855547,20.0,146.56,146.55,23.776884]
[1728338856057,20.0,146.56,146.54,23.776884]
[1728338856365,26.8222,146.58,146.55,1.36450114]
[1728338856565,26.8222,146.58,146.54,23.776884]
[1728338856772,20.0,146.56,146.54,23.776884]
[1728338857475,20.0,146.56,146.55,25.14138618]
[1728338859763,20.0,146.56,146.55,23.776884]
[1728338859965,20.0,146.56,146.54,23.776884]
[1728338860277,20.0,146.56,146.55,25.1413879]
[1728338866777,20.0,146.56,146.55,25.2668779]
[1728338867072,6.8218,146.59,146.56,0.12549]
[1728338867276,20.0,146.58,146.56,23.902374]
[1728338867578,20.0,146.58,146.57,1.36435061]
[1728338867767,20.0,146.58,146.57,25.14123461]
[1728338868579,20.0,146.58,146.57,23.776884]
[1728338874385,26.8222,146.58,146.57,23.776884]
[1728338878990,6.8234,146.56,146.5,6.0164]
[1728338879284,20.0,146.55,146.51,30.0]
[1728338880062,20.0,146.55,146.52,0.12549]
[1728338880266,20.0,146.55,146.52,0.25098]
[1728338881180,20.0,146.55,146.52,25.3924572]
[1728338882671,21.46011485,146.6,146.53,1.36459447]
[1728338882870,20.0,146.6,146.55,0.12549]
[1728338883186,20.0,146.6,146.56,23.776884]
[1728338883482,20.0,146.6,146.57,1.36432087]